fUSD/lending_fUSD_20240426
["ID","MTS","AMOUNT","RATE_DAILY","PERIOD"]
[323628778,1714144269821,-500.0,0.00012199,2]
[323628779,1714144269830,-500.0,0.00012199,2]
[323628780,1714144269841,-500.0,0.00012199,2]
[323628781,1714144269851,-500.0,0.00012199,2]
[323628782,1714144269861,-500.0,0.00012199,2]
[323628783,1714144269870,-500.0,0.00012199,2]
[323628784,1714144269879,-644.09,0.00012199,2]
[323628785,1714144269889,-500.0,0.00012199,2]
[323628786,1714144269899,-500.0,0.00012199,2]
[323628787,1714144269913,-500.0,0.00012199,2]
[323628788,1714144269922,-500.0,0.00012199,2]
[323628789,1714144269932,-500.0,0.00012199,2]
[323628790,1714144269942,-500.0,0.00012199,2]
[323628791,1714144269951,-500.0,0.00012199,2]
[323628792,1714144269961,-500.0,0.00012199,2]
[323628793,1714144269970,-500.0,0.00012199,2]
[323628794,1714144269980,-500.0,0.00012199,2]
[323628795,1714144269990,-500.0,0.00012199,2]
[323628796,1714144270000,-500.0,0.00012199,2]
[323628797,1714144270010,-500.0,0.00012199,2]
[323628798,1714144270020,-500.0,0.00012199,2]
[323628799,1714144270029,-511.4,0.00012199,2]
[323628800,1714144270039,-659.04,0.00012199,2]
[323628801,1714144270049,-669.23,0.00012199,2]
[323628802,1714144270059,-500.0,0.00012199,2]
[323628803,1714144270069,-500.0,0.00012199,2]
[323628804,1714144270078,-500.0,0.00012199,2]
[323628805,1714144270088,-500.0,0.00012199,2]
[323628806,1714144270098,-500.0,0.00012199,2]
[323628807,1714144270108,-500.0,0.00012199,2]
[323628808,1714144270117,-500.0,0.00012199,2]
[323628809,1714144270126,-500.0,0.00012199,2]
[323628810,1714144270136,-589.96,0.00012199,2]
[323628811,1714144270145,-500.0,0.00012199,2]
[323628812,1714144270158,-500.0,0.00012199,2]
[323628813,1714144270167,-533.29,0.00012199,2]
[323628814,1714144270176,-500.0,0.00012199,2]
[323628815,1714144270186,-531.91,0.00012199,2]
[323628816,1714144270195,-590.28,0.00012199,2]
[323628817,1714144270204,-500.0,0.00012199,2]
[323628818,1714144270214,-500.0,0.00012199,2]
[323628819,1714144270224,-500.0,0.00012199,2]
[323628820,1714144270234,-500.0,0.00012199,2]
[323628821,1714144270243,-510.26,0.00012199,2]
[323628822,1714144270253,-758.48,0.00012199,2]
[323628823,1714144270262,-500.0,0.00012199,2]
[323628824,1714144270272,-500.0,0.00012199,2]
[323628825,1714144270281,-815.14,0.00012199,2]
[323628826,1714144270291,-1077.93,0.00012199,2]
[323628827,1714144270301,-164.38,0.00012199,2]
[323628828,1714144270311,-1259.87,0.00012199,2]
[323628829,1714144270321,-500.0,0.00012199,2]
[323628830,1714144270331,-808.56,0.00012199,2]
[323628831,1714144270340,-500.0,0.00012199,2]
[323628832,1714144270350,-500.0,0.00012199,2]
[323628833,1714144270359,-500.0,0.00012199,2]
[323628834,1714144270369,-500.0,0.00012199,2]
[323628835,1714144270379,-500.0,0.00012199,2]
[323628836,1714144270389,-500.0,0.00012199,2]
[323628837,1714144270398,-531.05,0.00012199,2]
[323628838,1714144270409,-500.0,0.00012199,2]
[323628839,1714144270419,-500.0,0.00012199,2]
[323628840,1714144270429,-592.61527688,0.00012199,2]
[323628841,1714144270438,-563.54,0.00012199,2]
[323628842,1714144270448,-500.0,0.00012199,2]
[323628843,1714144270457,-500.0,0.00012199,2]
[323628844,1714144270467,-500.0,0.00012199,2]
[323628845,1714144270477,-500.0,0.00012199,2]
[323628846,1714144270486,-500.0,0.00012199,2]
[323628847,1714144270496,-500.0,0.00012199,2]
[323628848,1714144270506,-500.0,0.00012199,2]
[323628849,1714144270515,-500.0,0.00012199,2]
[323628850,1714144270525,-1134.79,0.00012199,2]
[323628851,1714144270535,-500.0,0.00012199,2]
[323628852,1714144270545,-500.0,0.00012199,2]
[323628853,1714144270554,-1438.05,0.00012199,2]
[323628854,1714144270564,-500.0,0.00012199,2]
[323628855,1714144270574,-500.0,0.00012199,2]
[323628856,1714144270584,-500.0,0.00012199,2]
[323628857,1714144270594,-925.0,0.00012199,2]
[323628858,1714144270607,-500.0,0.00012199,2]
[323628859,1714144270617,-1992.64,0.00012199,2]
[323628860,1714144270627,-500.0,0.00012199,2]
[323628861,1714144270636,-694.43,0.00012199,2]
[323628862,1714144270646,-500.0,0.00012199,2]
[323628863,1714144270658,-500.0,0.00012199,2]
[323628864,1714144270667,-500.0,0.00012199,2]
[323628865,1714144270678,-623.59,0.00012199,2]
[323628866,1714144270688,-500.0,0.00012199,2]
[323628867,1714144270698,-500.0,0.00012199,2]
[323628868,1714144270708,-1036.96,0.00012199,2]
[323628869,1714144270717,-500.0,0.00012199,2]
[323628870,1714144270727,-500.0,0.00012199,2]
[323628871,1714144270736,-500.0,0.00012199,2]
[323628872,1714144270747,-500.0,0.00012199,2]
[323628873,1714144270757,-1556.53,0.00012199,2]
[323628874,1714144270767,-500.0,0.00012199,2]
[323628875,1714144270778,-500.0,0.00012199,2]
[323628876,1714144270787,-500.0,0.00012199,2]
[323628877,1714144270798,-1114.29,0.00012199,2]
[323628878,1714144270808,-500.0,0.00012199,2]
[323628879,1714144270817,-500.0,0.00012199,2]
[323628880,1714144270827,-500.0,0.00012199,2]
[323628881,1714144270837,-932.29,0.00012199,2]
[323628882,1714144270847,-500.0,0.00012199,2]
[323628883,1714144270856,-500.0,0.00012199,2]
[323628884,1714144270866,-500.0,0.00012199,2]
[323628885,1714144270876,-500.0,0.00012199,2]
[323628886,1714144270886,-765.44,0.00012199,2]
[323628887,1714144270896,-500.0,0.00012199,2]
[323628888,1714144270909,-2801.26,0.00012199,2]
[323628889,1714144270923,-500.0,0.00012199,2]
[323628890,1714144270933,-500.0,0.00012199,2]
[323628891,1714144270943,-500.0,0.00012199,2]
[323628892,1714144270953,-500.0,0.00012199,2]
[323628893,1714144270963,-2633.84,0.00012199,2]
[323628894,1714144270973,-500.0,0.00012199,2]
[323628895,1714144270983,-500.0,0.00012199,2]
[323628896,1714144270994,-500.0,0.00012199,2]
[323628897,1714144271003,-500.0,0.00012199,2]
[323628898,1714144271013,-500.0,0.00012199,2]
[323628899,1714144271023,-500.0,0.00012199,2]
[323628900,1714144271033,-500.0,0.00012199,2]
[323628901,1714144271043,-500.0,0.00012199,2]
[323628902,1714144271054,-500.0,0.00012199,2]
[323628903,1714144271064,-500.0,0.00012199,2]
[323628904,1714144271074,-1187.43,0.00012199,2]
[323628905,1714144271084,-1270.93,0.00012199,2]
[323628906,1714144271094,-500.0,0.00012199,2]
[323628907,1714144271104,-500.0,0.00012199,2]
[323628908,1714144271118,-500.0,0.00012199,2]
[323628909,1714144271128,-3016.12,0.00012199,2]
[323628910,1714144271137,-170.29055343,0.00012199,2]
[323628911,1714144271147,-500.0,0.00012199,2]
[323628912,1714144271162,-500.0,0.00012199,2]
[323628913,1714144271172,-500.0,0.00012199,2]
[323628914,1714144271347,-500.0,0.00012199,2]
[323628915,1714144271357,-1519.31,0.00012199,2]
[323628916,1714144271367,-500.0,0.00012199,2]
[323628917,1714144271376,-500.0,0.00012199,2]
[323628918,1714144271387,-500.0,0.00012199,2]
[323628919,1714144271397,-708.42,0.00012199,2]
[323628920,1714144271410,-737.33,0.00012199,2]
[323628921,1714144271419,-500.0,0.00012199,2]
[323628922,1714144271429,-500.0,0.00012199,2]
[323628923,1714144271438,-500.0,0.00012199,2]
[323628924,1714144271448,-500.0,0.00012199,2]
[323628925,1714144271458,-698.49,0.00012199,2]
[323628926,1714144271467,-500.0,0.00012199,2]
[323628927,1714144271476,-500.0,0.00012199,2]
[323628928,1714144271486,-500.0,0.00012199,2]
[323628929,1714144271495,-500.0,0.00012199,2]
[323628930,1714144271504,-500.0,0.00012199,2]
[323628931,1714144271514,-500.0,0.00012199,2]
[323628932,1714144271524,-500.0,0.00012199,2]
[323628933,1714144271533,-500.0,0.00012199,2]
[323628934,1714144271543,-500.0,0.00012199,2]
[323628935,1714144271552,-500.0,0.00012199,2]
[323628936,1714144271561,-500.0,0.00012199,2]
[323628937,1714144271570,-500.0,0.00012199,2]
[323628938,1714144271580,-500.0,0.00012199,2]
[323628939,1714144271589,-500.0,0.00012199,2]
[323628940,1714144271601,-500.0,0.00012199,2]
[323628941,1714144271610,-500.0,0.00012199,2]
[323628942,1714144271620,-792.9,0.00012199,2]
[323628943,1714144271630,-500.0,0.00012199,2]
[323628944,1714144271640,-500.0,0.00012199,2]
[323628945,1714144271649,-500.0,0.00012199,2]
[323628946,1714144271661,-615.82,0.00012199,2]
[323628947,1714144271670,-642.58,0.00012199,2]
[323628948,1714144271679,-500.0,0.000122,2]
[323628949,1714144271689,-500.0,0.000122,2]
[323628950,1714144271698,-500.0,0.000122,2]
[323628951,1714144271708,-500.0,0.000122,2]
[323628952,1714144271718,-500.0,0.000122,2]
[323628953,1714144271727,-500.0,0.000122,2]
[323628954,1714144271736,-500.0,0.000122,2]
[323628955,1714144271745,-500.0,0.000122,2]
[323628956,1714144271754,-500.0,0.000122,2]
[323628957,1714144271764,-500.0,0.000122,2]
[323628958,1714144271773,-500.0,0.000122,2]
[323628959,1714144271782,-500.0,0.000122,2]
[323628960,1714144271792,-500.0,0.000122,2]
[323628961,1714144271802,-500.0,0.000122,2]
[323628962,1714144271811,-500.0,0.000122,2]
[323628963,1714144271821,-504.33064574,0.00012201,2]
[323628964,1714144271830,-189.11650848,0.00012201,2]
[323628965,1714144271840,-500.0,0.00012201,2]
[323628966,1714144271849,-500.0,0.00012201,2]
[323628967,1714144271859,-500.0,0.00012201,2]
[323628968,1714144271868,-500.0,0.00012201,2]
[323628969,1714144271877,-500.0,0.00012201,2]
[323628970,1714144271887,-337.40802039,0.00012201,2]
[323628971,1714144271898,-489.50268045,0.00012201,2]
[323628972,1714144271909,-500.0,0.00012201,2]
[323628973,1714144271918,-500.0,0.00012201,2]
[323628974,1714144271927,-500.0,0.00012201,2]
[323628975,1714144271937,-628.93,0.00012213,2]
[323628976,1714144271946,-728.15,0.00012213,2]
[323628977,1714144271955,-500.0,0.00012213,2]
[323628978,1714144271964,-500.0,0.00012213,2]
[323628979,1714144271974,-579.74,0.00012213,2]
[323628980,1714144271983,-562.33,0.00012213,2]
[323628981,1714144271993,-500.0,0.00012213,2]
[323628982,1714144272002,-799.85,0.00012213,2]
[323628983,1714144272011,-500.0,0.00012213,2]
[323628984,1714144272021,-500.0,0.00012213,2]
[323628985,1714144272030,-572.36,0.00012213,2]
[323628986,1714144272039,-500.0,0.00012213,2]
[323628987,1714144272048,-500.0,0.00012213,2]
[323628988,1714144272058,-500.0,0.00012213,2]
[323628989,1714144272067,-500.0,0.00012213,2]
[323628990,1714144272076,-500.0,0.00012213,2]
[323628991,1714144272086,-650.23,0.00012213,2]
[323628992,1714144272095,-194.34787524,0.00012213,2]
[323628993,1714144272105,-500.0,0.00012213,2]
[323628994,1714144272114,-500.0,0.00012213,2]
[323628995,1714144272124,-754.15257926,0.00012214,2]
[323628996,1714144272133,-500.0,0.00012258,2]
[323628997,1714144272142,-1200.0,0.0001226,2]
[323628998,1714144272151,-500.0,0.0001226,2]
[323628999,1714144272164,-500.0,0.0001226,2]
[323629000,1714144272174,-1600.0,0.0001226,2]
[323629001,1714144272183,-600.0,0.0001226,2]
[323629002,1714144272193,-500.0,0.00012266,2]
[323629003,1714144272202,-500.0,0.00012275,2]
[323629004,1714144272212,-500.0,0.00012284,2]
[323629005,1714144272221,-500.0,0.00012293,2]
[323629006,1714144272231,-1697.0,0.000123,2]
[323629007,1714144272240,-500.0,0.00012302,2]
[323629008,1714144272250,-500.0,0.00012304,2]
[323629009,1714144272260,-500.0,0.00012304,2]
[323629010,1714144272269,-220.05143595,0.00012304,2]
[323629011,1714144272279,-500.0,0.00012304,2]
[323629012,1714144272288,-829.23,0.00012304,2]
[323629013,1714144272298,-500.0,0.00012304,2]
[323629014,1714144272307,-638.12,0.00012304,2]
[323629015,1714144272316,-500.0,0.00012304,2]
[323629016,1714144272327,-549.85,0.00012304,2]
[323629017,1714144272337,-500.0,0.00012304,2]
[323629018,1714144272346,-807.86,0.00012304,2]
[323629019,1714144272356,-588.1,0.00012304,2]
[323629020,1714144272365,-500.0,0.00012304,2]
[323629021,1714144272375,-500.0,0.00012304,2]
[323629022,1714144272385,-14539.55,0.00012304,2]
[323629023,1714144272394,-500.0,0.0001231,2]
[323629024,1714144272404,-754.15257926,0.00012312,2]
[323629025,1714144272416,-500.0,0.00012319,2]
[323629026,1714144272425,-500.0,0.00012328,2]
[323629027,1714144272435,-514.0,0.00012328,2]
[323629028,1714144272445,-1327.0,0.00012328,2]
[323629029,1714144272455,-500.0,0.00012368,2]
[323629030,1714144272464,-1929.54,0.0001237,2]
[323629031,1714144272474,-2966.68,0.0001237,2]
[323629032,1714144272483,-500.0,0.0001237,2]
[323629033,1714144272493,-2021.25,0.0001237,2]
[323629034,1714144272503,-959.53,0.0001237,2]
[323629035,1714144272512,-1581.39,0.0001237,2]
[323629036,1714144272522,-1999.67,0.0001237,2]
[323629037,1714144272531,-1479.0,0.0001237,2]
[323629038,1714144272542,-500.0,0.0001237,2]
[323629039,1714144272552,-500.0,0.0001237,2]
[323629040,1714144272562,-1335.86,0.0001237,2]
[323629041,1714144272572,-500.0,0.0001237,2]
[323629042,1714144272582,-500.0,0.0001237,2]
[323629043,1714144272592,-3036.88,0.0001237,2]
[323629044,1714144272601,-2181.33,0.0001237,2]
[323629045,1714144272610,-756.35,0.0001237,2]
[323629046,1714144272624,-530.87,0.0001237,2]
[323629047,1714144272634,-1511.47,0.0001237,2]
[323629048,1714144272644,-1781.76,0.0001237,2]
[323629049,1714144272653,-535.46,0.0001237,2]
[323629050,1714144272666,-929.19,0.0001237,2]
[323629051,1714144272675,-2050.24,0.0001237,2]
[323629052,1714144272685,-1427.69,0.0001237,2]
[323629053,1714144272696,-1581.09,0.0001237,2]
[323629054,1714144272705,-500.0,0.0001237,2]
[323629055,1714144272715,-500.0,0.0001237,2]
[323629056,1714144272724,-8111.76,0.0001237,2]
[323629057,1714144272734,-881.08,0.0001237,2]
[323629058,1714144272744,-3242.05,0.0001237,2]
[323629059,1714144272755,-2025.69,0.0001237,2]
[323629060,1714144272766,-500.0,0.0001237,2]
[323629061,1714144272776,-4761.42,0.0001237,2]
[323629062,1714144272786,-759.13,0.0001237,2]
[323629063,1714144272796,-958.34,0.0001237,2]
[323629064,1714144272806,-1113.72,0.0001237,2]
[323629065,1714144272816,-2788.8,0.0001237,2]
[323629066,1714144272825,-1025.56,0.0001237,2]
[323629067,1714144272835,-500.0,0.0001237,2]
[323629068,1714144272844,-500.0,0.0001237,2]
[323629069,1714144272854,-500.0,0.0001237,2]
[323629070,1714144272864,-907.6,0.0001237,2]
[323629071,1714144272873,-1596.65,0.0001237,2]
[323629072,1714144272883,-592.32,0.0001237,2]
[323629073,1714144272892,-500.0,0.0001237,2]
[323629074,1714144272902,-1103.38,0.0001237,2]
[323629075,1714144272914,-1620.05,0.0001237,2]
[323629076,1714144272923,-500.0,0.0001237,2]
[323629077,1714144272932,-500.0,0.0001237,2]
[323629078,1714144272941,-500.0,0.0001237,2]
[323629079,1714144272950,-500.0,0.0001237,2]
[323629080,1714144272959,-500.0,0.0001237,2]
[323629081,1714144272969,-900.65,0.0001237,2]
[323629082,1714144272978,-2592.79,0.0001237,2]
[323629083,1714144272987,-6571.64,0.0001237,2]
[323629084,1714144272997,-521.28,0.0001237,2]
[323629085,1714144273006,-582.1,0.0001237,2]
[323629086,1714144273016,-516.88,0.0001237,2]
[323629087,1714144273026,-500.0,0.00012387,2]
[323629088,1714144273034,-500.0,0.00012387,2]
[323629089,1714144273044,-500.0,0.00012387,2]
[323629090,1714144273053,-500.0,0.00012387,2]
[323629091,1714144273062,-662.31,0.00012387,2]
[323629092,1714144273072,-161.77660409,0.00012387,2]
[323629093,1714144273082,-500.0,0.00012387,2]
[323629094,1714144273091,-500.0,0.00012387,2]
[323629095,1714144273101,-500.0,0.00012387,2]
[323629096,1714144273110,-1027.87,0.00012387,2]
[323629097,1714144273120,-500.0,0.00012387,2]
[323629098,1714144273129,-500.0,0.00012387,2]
[323629099,1714144273138,-537.7,0.00012387,2]
[323629100,1714144273148,-1329.4,0.00012387,2]
[323629101,1714144273158,-3382.19,0.00012387,2]
[323629102,1714144273167,-575.5,0.00012387,2]
[323629103,1714144273176,-500.0,0.00012387,2]
[323629104,1714144273186,-3841.15,0.00012387,2]
[323629105,1714144273195,-500.0,0.00012387,2]
[323629106,1714144273205,-394.4488538,0.00012387,2]
[323629107,1714144273214,-500.0,0.00012387,2]
[323629108,1714144273223,-2727.56,0.00012387,2]
[323629109,1714144273233,-500.0,0.00012387,2]
[323629110,1714144273242,-500.0,0.00012387,2]
[323629111,1714144273252,-537.54,0.00012387,2]
[323629112,1714144273261,-500.0,0.00012387,2]
[323629113,1714144273271,-500.0,0.00012387,2]
[323629114,1714144273280,-500.0,0.00012387,2]
[323629115,1714144273290,-500.0,0.00012387,2]
[323629116,1714144273299,-500.0,0.00012387,2]
[323629117,1714144273309,-500.0,0.00012387,2]
[323629118,1714144273318,-785.13,0.00012387,2]
[323629119,1714144273328,-500.0,0.00012387,2]
[323629120,1714144273338,-558.17,0.00012387,2]
[323629121,1714144273347,-1116.4,0.00012387,2]
[323629122,1714144273356,-500.0,0.00012387,2]
[323629123,1714144273366,-500.0,0.00012387,2]
[323629124,1714144273375,-500.0,0.00012387,2]
[323629125,1714144273386,-579.13,0.00012387,2]
[323629126,1714144273396,-500.0,0.00012387,2]
[323629127,1714144273405,-957.84,0.00012387,2]
[323629128,1714144273420,-343.9882754,0.00012387,2]
[323629129,1714144273430,-500.0,0.00012387,2]
[323629130,1714144273441,-664.1,0.00012387,2]
[323629131,1714144273451,-500.0,0.00012387,2]
[323629132,1714144273460,-500.0,0.00012387,2]
[323629133,1714144273469,-500.0,0.00012387,2]
[323629134,1714144273479,-882.25,0.00012387,2]
[323629135,1714144273489,-500.0,0.00012387,2]
[323629136,1714144273499,-500.0,0.00012387,2]
[323629137,1714144273508,-500.0,0.00012387,2]
[323629138,1714144273518,-764.06,0.00012387,2]
[323629139,1714144273528,-500.0,0.00012387,2]
[323629140,1714144273537,-500.0,0.00012387,2]
[323629141,1714144273547,-500.0,0.00012387,2]
[323629142,1714144273556,-150.0,0.00012387,2]
[323629143,1714144273566,-500.0,0.00012387,2]
[323629144,1714144273575,-500.0,0.00012387,2]
[323629145,1714144273585,-500.0,0.00012387,2]
[323629146,1714144273598,-758.65,0.00012387,2]
[323629147,1714144273608,-500.0,0.00012387,2]
[323629148,1714144273618,-500.0,0.00012387,2]
[323629149,1714144273627,-507.68880212,0.00012387,2]
[323629150,1714144273638,-407.1852764,0.00012387,2]
[323629151,1714144273648,-954.46,0.00012387,2]
[323629152,1714144273659,-227.55,0.00012387,2]
[323629153,1714144273669,-680.81,0.00012387,2]
[323629154,1714144273678,-500.0,0.00012387,2]
[323629155,1714144273688,-503.32429532,0.00012387,2]
[323629156,1714144273699,-500.0,0.00012387,2]
[323629157,1714144273708,-500.0,0.00012387,2]
[323629158,1714144273718,-500.0,0.00012387,2]
[323629159,1714144273728,-500.0,0.00012387,2]
[323629160,1714144273737,-500.0,0.00012387,2]
[323629161,1714144273746,-500.0,0.00012387,2]
[323629162,1714144273756,-500.0,0.00012387,2]
[323629163,1714144273765,-739.45,0.00012387,2]
[323629164,1714144273775,-500.0,0.00012387,2]
[323629165,1714144273784,-500.0,0.00012387,2]
[323629166,1714144273794,-500.0,0.00012387,2]
[323629167,1714144273804,-500.0,0.00012387,2]
[323629168,1714144273813,-529.62,0.00012387,2]
[323629169,1714144273823,-500.0,0.00012387,2]
[323629170,1714144273832,-162.09,0.00012387,2]
[323629171,1714144273841,-500.0,0.00012387,2]
[323629172,1714144273851,-597.21,0.00012387,2]
[323629173,1714144273860,-1069.36,0.00012387,2]
[323629174,1714144273869,-500.0,0.00012387,2]
[323629175,1714144273879,-478.68034055,0.00012387,2]
[323629176,1714144273889,-500.0,0.00012387,2]
[323629177,1714144273898,-500.0,0.00012387,2]
[323629178,1714144273911,-500.0,0.00012387,2]
[323629179,1714144273921,-500.0,0.00012387,2]
[323629180,1714144273931,-500.0,0.00012387,2]
[323629181,1714144273940,-500.0,0.00012387,2]
[323629182,1714144273950,-500.0,0.00012387,2]
[323629183,1714144273959,-500.0,0.00012387,2]
[323629184,1714144273968,-500.0,0.00012387,2]
[323629185,1714144273979,-500.0,0.00012387,2]
[323629186,1714144273988,-642.38,0.00012387,2]
[323629187,1714144273997,-606.85,0.00012387,2]
[323629188,1714144274006,-500.0,0.00012387,2]
[323629189,1714144274016,-500.0,0.00012387,2]
[323629190,1714144274025,-500.0,0.00012387,2]
[323629191,1714144274034,-743.34,0.00012387,2]
[323629192,1714144274044,-500.0,0.00012387,2]
[323629193,1714144274053,-500.0,0.00012387,2]
[323629194,1714144274062,-500.0,0.00012387,2]
[323629195,1714144274071,-630.39,0.00012387,2]
[323629196,1714144274080,-920.66,0.00012387,2]
[323629197,1714144274090,-500.0,0.00012387,2]
[323629198,1714144274099,-1959.75,0.00012387,2]
[323629199,1714144274272,-500.0,0.00012387,2]
[323629200,1714144274282,-500.0,0.00012387,2]
[323629201,1714144274292,-500.0,0.00012387,2]
[323629202,1714144274301,-2715.22,0.00012387,2]
[323629203,1714144274311,-500.0,0.00012387,2]
[323629204,1714144274321,-500.0,0.00012387,2]
[323629205,1714144274330,-1289.14,0.00012387,2]
[323629206,1714144274340,-500.0,0.00012387,2]
[323629207,1714144274349,-500.0,0.00012387,2]
[323629208,1714144274359,-500.0,0.00012387,2]
[323629209,1714144274369,-1517.61,0.00012387,2]
[323629210,1714144274379,-500.0,0.00012387,2]
[323629211,1714144274388,-1544.68,0.00012387,2]
[323629212,1714144274398,-500.0,0.00012387,2]
[323629213,1714144274408,-2773.44,0.00012387,2]
[323629214,1714144274421,-1704.29,0.00012387,2]
[323629215,1714144274431,-781.06,0.00012387,2]
[323629216,1714144274441,-811.4,0.00012387,2]
[323629217,1714144274451,-3173.09,0.00012387,2]
[323629218,1714144274460,-500.0,0.00012387,2]
[323629219,1714144274470,-500.0,0.00012387,2]
[323629220,1714144274479,-500.0,0.00012387,2]
[323629221,1714144274488,-4359.8,0.00012387,2]
[323629222,1714144274498,-500.0,0.00012387,2]
[323629223,1714144274508,-500.0,0.00012387,2]
[323629224,1714144274517,-903.79,0.00012387,2]
[323629225,1714144274526,-1331.69,0.00012387,2]
[323629226,1714144274536,-500.0,0.00012387,2]
[323629227,1714144274545,-500.0,0.00012387,2]
[323629228,1714144274554,-500.0,0.00012387,2]
[323629229,1714144274564,-500.0,0.00012387,2]
[323629230,1714144274573,-500.0,0.00012387,2]
[323629231,1714144274582,-2216.77,0.00012387,2]
[323629232,1714144274592,-733.22,0.00012387,2]
[323629233,1714144274602,-12108.01,0.00012387,2]
[323629234,1714144274612,-500.0,0.00012387,2]
[323629235,1714144274624,-500.0,0.00012387,2]
[323629236,1714144274633,-500.0,0.00012387,2]
[323629237,1714144274643,-672.43,0.00012387,2]
[323629238,1714144274652,-500.0,0.00012387,2]
[323629239,1714144274665,-500.0,0.00012387,2]
[323629240,1714144274675,-500.0,0.00012387,2]
[323629241,1714144274695,-500.0,0.00012387,2]
[323629242,1714144274707,-1000.0,0.000124,2]
[323629243,1714144274716,-500.0,0.000124,2]
[323629244,1714144274726,-377.78,0.00012406,2]
[323629245,1714144274736,-754.15257926,0.0001241,2]
[323629246,1714144274746,-1109.33056369,0.00012448,2]
[323629247,1714144274756,-500.0,0.0001247,2]
[323629248,1714144274766,-500.0,0.0001247,2]
[323629249,1714144274776,-500.0,0.0001247,2]
[323629250,1714144274786,-535.58,0.0001247,2]
[323629251,1714144274796,-500.0,0.0001247,2]
[323629252,1714144274806,-436.74,0.0001247,2]
[323629253,1714144274816,-500.0,0.0001247,2]
[323629254,1714144274826,-503.69405743,0.0001247,2]
[323629255,1714144274837,-311.7320063,0.0001247,2]
[323629256,1714144274847,-500.0,0.0001247,2]
[323629257,1714144274859,-596.07,0.0001247,2]
[323629258,1714144274869,-500.0,0.0001247,2]
[323629259,1714144274878,-756.67,0.0001247,2]
[323629260,1714144274888,-514.83,0.0001247,2]
[323629261,1714144274898,-500.0,0.0001247,2]
[323629262,1714144274911,-500.0,0.0001247,2]
[323629263,1714144274921,-500.0,0.0001247,2]
[323629264,1714144274930,-500.0,0.0001247,2]
[323629265,1714144274940,-500.0,0.0001247,2]
[323629266,1714144274949,-648.48,0.0001247,2]
[323629267,1714144274959,-500.0,0.0001247,2]
[323629268,1714144274968,-2642.42,0.0001247,2]
[323629269,1714144274978,-500.0,0.0001247,2]
[323629270,1714144274987,-172.63294783,0.0001247,2]
[323629271,1714144274997,-775.58,0.0001247,2]
[323629272,1714144275007,-500.0,0.0001247,2]
[323629273,1714144275017,-500.0,0.0001247,2]
[323629274,1714144275027,-500.0,0.0001247,2]
[323629275,1714144275036,-500.0,0.0001247,2]
[323629276,1714144275046,-1312.69,0.0001247,2]
[323629277,1714144275055,-505.96085601,0.0001247,2]